[Event "Titled Tuesday Blitz February 01 A 2022"]
[White "Dobrov, Vladimir"]
[Black "Jones, Gawain C B"]
[WhiteFideId "4136594"]
[BlackFideId "409561"]
[WhiteElo "2814"]
[BlackElo "2899"]
[Result "0-1"]
[Round "04"]
[TimeControl "180+1"]
[Date "2022.02.01"]
[WhiteClock "0:00:04"]
[BlackClock "0:00:03"]

1. d4 {[%clk 0:03:00]}  Nf6 {[%clk 0:02:59]} 2. c4 {[%clk 0:03:01]}  g6 {[%clk 0:03:00]} 3. Nc3 {[%clk 0:02:56]}  Bg7 {[%clk 0:03:00]} 4. e4 {[%clk 0:02:57]}  d6 {[%clk 0:03:01]} 5. Be2 {[%clk 0:02:57]}  O-O {[%clk 0:03:01]} 6. Nf3 {[%clk 0:02:58]}  Nbd7 {[%clk 0:02:59]} 7. O-O {[%clk 0:02:57]}  e5 {[%clk 0:03:00]} 8. Re1 {[%clk 0:02:57]}  c6 {[%clk 0:02:55]} 9. Bf1 {[%clk 0:02:53]}  a6 {[%clk 0:02:55]} 10. d5 {[%clk 0:02:30]}  c5 {[%clk 0:02:51]} 11. g3 {[%clk 0:02:23]}  Kh8 {[%clk 0:02:49]} 12. a3 {[%clk 0:02:22]}  Ng8 {[%clk 0:02:48]} 13. b4 {[%clk 0:02:22]}  b6 {[%clk 0:02:45]} 14. Rb1 {[%clk 0:02:21]}  Bh6 {[%clk 0:02:43]} 15. bxc5 {[%clk 0:02:14]}  bxc5 {[%clk 0:02:38]} 16. Qa4 {[%clk 0:01:35]}  Qe7 {[%clk 0:02:35]} 17. Qc6 {[%clk 0:01:26]}  Ra7 {[%clk 0:02:34]} 18. Bb2 {[%clk 0:01:14]}  Ndf6 {[%clk 0:02:23]} 19. Ba1 {[%clk 0:01:09]}  Rc7 {[%clk 0:02:22]} 20. Qa4 {[%clk 0:01:09]}  Bg4 {[%clk 0:02:16]} 21. Bg2 {[%clk 0:01:08]}  Nh5 {[%clk 0:01:52]} 22. Qxa6 {[%clk 0:01:05]}  Ra7 {[%clk 0:01:50]} 23. Qb6 {[%clk 0:01:03]}  Rxa3 {[%clk 0:01:47]} 24. Rb3 {[%clk 0:01:00]}  Rxb3 {[%clk 0:01:36]} 25. Qxb3 {[%clk 0:01:00]}  f5 {[%clk 0:01:33]} 26. exf5 {[%clk 0:00:58]}  gxf5 {[%clk 0:01:29]} 27. Nb5 {[%clk 0:00:58]}  Bg7 {[%clk 0:01:24]} 28. Nd2 {[%clk 0:00:43]}  Nhf6 {[%clk 0:01:15]} 29. f3 {[%clk 0:00:37]}  Bh5 {[%clk 0:01:15]} 30. Bh3 {[%clk 0:00:37]}  Bg6 {[%clk 0:01:08]} 31. f4 {[%clk 0:00:36]}  e4 {[%clk 0:01:01]} 32. Nf1 {[%clk 0:00:36]}  h5 {[%clk 0:00:56]} 33. Ne3 {[%clk 0:00:35]}  Ng4 {[%clk 0:00:56]} 34. Bxg4 {[%clk 0:00:33]}  hxg4 {[%clk 0:00:56]} 35. Qa3 {[%clk 0:00:32]}  Nf6 {[%clk 0:00:51]} 36. Qa6 {[%clk 0:00:31]}  Ne8 {[%clk 0:00:48]} 37. Kg2 {[%clk 0:00:24]}  Bxa1 {[%clk 0:00:45]} 38. Rxa1 {[%clk 0:00:22]}  Qf6 {[%clk 0:00:39]} 39. Qa3 {[%clk 0:00:22]}  Kg8 {[%clk 0:00:22]} 40. Qc3 {[%clk 0:00:22]}  Qxc3 {[%clk 0:00:21]} 41. Nxc3 {[%clk 0:00:23]}  Rf7 {[%clk 0:00:20]} 42. Ra8 {[%clk 0:00:22]}  Rb7 {[%clk 0:00:20]} 43. Nb5 {[%clk 0:00:22]}  Kg7 {[%clk 0:00:17]} 44. h3 {[%clk 0:00:20]}  gxh3+ {[%clk 0:00:16]} 45. Kxh3 {[%clk 0:00:21]}  Rb6 {[%clk 0:00:15]} 46. Kh4 {[%clk 0:00:20]}  Nf6 {[%clk 0:00:15]} 47. Ra7+ {[%clk 0:00:20]}  Kh6 {[%clk 0:00:13]} 48. Re7 {[%clk 0:00:18]}  Ra6 {[%clk 0:00:07]} 49. Re6 {[%clk 0:00:15]}  Kg7 {[%clk 0:00:06]} 50. Rxd6 {[%clk 0:00:12]}  Ra3 {[%clk 0:00:06]} 51. Nc2 {[%clk 0:00:08]}  Ra2 {[%clk 0:00:06]} 52. Nba3 {[%clk 0:00:07]}  e3 {[%clk 0:00:04]} 53. Re6 {[%clk 0:00:08]}  Ne4 {[%clk 0:00:04]} 54. d6 {[%clk 0:00:05]}  e2 {[%clk 0:00:03]} 55. d7 {[%clk 0:00:04]}  e1=Q {[%clk 0:00:03]} 0-1


[Site "https://www.chess.com"]

[Event "Titled Tuesday Blitz February 01 A 2022"]
[White "Durarbayli, Vasif"]
[Black "Abdrlauf, Elham"]
[WhiteFideId "13402935"]
[BlackFideId "1533533"]
[WhiteElo "2840"]
[BlackElo "2951"]
[Result "0-1"]
[Round "04"]
[TimeControl "180+1"]
[Date "2022.02.01"]
[WhiteClock "0:00:01"]
[BlackClock "0:00:04"]

1. e4 {[%clk 0:03:00]}  c6 {[%clk 0:02:56]} 2. d4 {[%clk 0:03:00]}  d5 {[%clk 0:02:56]} 3. exd5 {[%clk 0:03:01]}  cxd5 {[%clk 0:02:57]} 4. c4 {[%clk 0:03:02]}  Nf6 {[%clk 0:02:57]} 5. Nc3 {[%clk 0:03:02]}  g6 {[%clk 0:02:58]} 6. cxd5 {[%clk 0:03:02]}  Bg7 {[%clk 0:02:50]} 7. Bb5+ {[%clk 0:02:59]}  Nbd7 {[%clk 0:02:50]} 8. d6 {[%clk 0:02:59]}  O-O {[%clk 0:02:48]} 9. dxe7 {[%clk 0:02:57]}  Qxe7+ {[%clk 0:02:49]} 10. Nge2 {[%clk 0:02:58]}  a6 {[%clk 0:02:45]} 11. Bd3 {[%clk 0:02:46]}  b5 {[%clk 0:02:45]} 12. O-O {[%clk 0:02:46]}  Bb7 {[%clk 0:02:45]} 13. a3 {[%clk 0:02:41]}  Nb6 {[%clk 0:02:43]} 14. Bg5 {[%clk 0:02:35]}  Qd7 {[%clk 0:02:36]} 15. Qd2 {[%clk 0:02:06]}  Nbd5 {[%clk 0:02:32]} 16. Bxf6 {[%clk 0:01:48]}  Bxf6 {[%clk 0:02:24]} 17. Ne4 {[%clk 0:01:47]}  Be7 {[%clk 0:02:00]} 18. Rac1 {[%clk 0:01:38]}  Rac8 {[%clk 0:01:39]} 19. Rxc8 {[%clk 0:01:34]}  Rxc8 {[%clk 0:01:38]} 20. Rc1 {[%clk 0:01:35]}  Rd8 {[%clk 0:01:27]} 21. Nc5 {[%clk 0:01:23]}  Bxc5 {[%clk 0:01:26]} 22. Rxc5 {[%clk 0:01:24]}  Ne7 {[%clk 0:01:19]} 23. h3 {[%clk 0:00:29]}  Nc6 {[%clk 0:01:02]} 24. Qh6 {[%clk 0:00:24]}  Nxd4 {[%clk 0:00:54]} 25. Nf4 {[%clk 0:00:24]}  Ne6 {[%clk 0:00:35]} 26. Nh5 {[%clk 0:00:08]}  Qe7 {[%clk 0:00:34]} 27. Rc3 {[%clk 0:00:07]}  Qg5 {[%clk 0:00:15]} 28. Qxg5 {[%clk 0:00:06]}  Nxg5 {[%clk 0:00:16]} 29. Nf6+ {[%clk 0:00:07]}  Kg7 {[%clk 0:00:16]} 30. Ng4 {[%clk 0:00:05]}  Ne6 {[%clk 0:00:17]} 31. Ne3 {[%clk 0:00:04]}  Rd7 {[%clk 0:00:14]} 32. Kf1 {[%clk 0:00:03]}  Nf4 {[%clk 0:00:13]} 33. Bc2 {[%clk 0:00:03]}  Nd5 {[%clk 0:00:08]} 34. Nxd5 {[%clk 0:00:02]}  Bxd5 {[%clk 0:00:09]} 35. Bd3 {[%clk 0:00:02]}  Rd6 {[%clk 0:00:03]} 36. h4 {[%clk 0:00:03]}  h5 {[%clk 0:00:03]} 37. g3 {[%clk 0:00:03]}  Rb6 {[%clk 0:00:02]} 38. Rc5 {[%clk 0:00:02]}  Rd6 {[%clk 0:00:02]} 39. Ke2 {[%clk 0:00:02]}  Be6 {[%clk 0:00:02]} 40. Ke3 {[%clk 0:00:02]}  Kf6 {[%clk 0:00:03]} 41. Be4 {[%clk 0:00:02]}  Ke7 {[%clk 0:00:02]} 42. Rc7+ {[%clk 0:00:02]}  Kf6 {[%clk 0:00:03]} 43. Ra7 {[%clk 0:00:03]}  Bd7 {[%clk 0:00:01]} 44. Bb7 {[%clk 0:00:02]}  Re6+ {[%clk 0:00:02]} 45. Kd2 {[%clk 0:00:02]}  Rd6+ {[%clk 0:00:02]} 46. Ke3 {[%clk 0:00:02]}  Re6+ {[%clk 0:00:03]} 47. Kd3 {[%clk 0:00:03]}  Rd6+ {[%clk 0:00:03]} 48. Kc3 {[%clk 0:00:03]}  Be6 {[%clk 0:00:03]} 49. Rxa6 {[%clk 0:00:04]}  Rd1 {[%clk 0:00:03]} 50. Bc8 {[%clk 0:00:01]}  Rc1+ {[%clk 0:00:03]} 51. Kb4 {[%clk 0:00:01]}  Rxc8 {[%clk 0:00:04]} 52. Kxb5 {[%clk 0:00:02]}  Rc2 {[%clk 0:00:03]} 53. b4 {[%clk 0:00:01]}  Rxf2 {[%clk 0:00:03]} 54. a4 {[%clk 0:00:01]}  Rf5+ {[%clk 0:00:02]} 55. Kc6 {[%clk 0:00:01]}  Rf1 {[%clk 0:00:01]} 56. b5 {[%clk 0:00:01]}  Rc1+ {[%clk 0:00:02]} 57. Kb7 {[%clk 0:00:02]}  Ke5 {[%clk 0:00:03]} 58. Ra8 {[%clk 0:00:01]}  Bd5+ {[%clk 0:00:04]} 0-1


[Site "https://www.chess.com"]

[Event "Titled Tuesday Blitz February 01 A 2022"]
[White "Khegay, Dmitriy"]
[Black "Hansen, Eric"]
[WhiteFideId "24153729"]
[BlackFideId "2606771"]
[WhiteElo "2669"]
[BlackElo "2953"]
[Result "0-1"]
[Round "04"]
[TimeControl "180+1"]
[Date "2022.02.01"]
[WhiteClock "0:00:24"]
[BlackClock "0:00:24"]

1. g3 {[%clk 0:03:00]}  d5 {[%clk 0:03:00]} 2. Bg2 {[%clk 0:03:01]}  Nf6 {[%clk 0:03:00]} 3. d3 {[%clk 0:03:00]}  c6 {[%clk 0:02:48]} 4. Nd2 {[%clk 0:03:00]}  e5 {[%clk 0:02:48]} 5. e4 {[%clk 0:03:00]}  Bd6 {[%clk 0:02:48]} 6. Ngf3 {[%clk 0:03:00]}  O-O {[%clk 0:02:49]} 7. O-O {[%clk 0:03:01]}  Re8 {[%clk 0:02:49]} 8. b3 {[%clk 0:03:01]}  Nbd7 {[%clk 0:02:50]} 9. Bb2 {[%clk 0:03:02]}  Nf8 {[%clk 0:02:51]} 10. Re1 {[%clk 0:03:02]}  Ng6 {[%clk 0:02:51]} 11. exd5 {[%clk 0:03:00]}  cxd5 {[%clk 0:02:52]} 12. c4 {[%clk 0:03:01]}  d4 {[%clk 0:02:52]} 13. Ng5 {[%clk 0:02:56]}  Bf5 {[%clk 0:02:41]} 14. Nge4 {[%clk 0:02:55]}  Nxe4 {[%clk 0:02:41]} 15. Nxe4 {[%clk 0:02:56]}  Bb4 {[%clk 0:02:40]} 16. Rf1 {[%clk 0:02:55]}  a5 {[%clk 0:02:37]} 17. a3 {[%clk 0:02:55]}  Bf8 {[%clk 0:02:37]} 18. Re1 {[%clk 0:02:56]}  Qd7 {[%clk 0:02:34]} 19. Qd2 {[%clk 0:02:55]}  Bh3 {[%clk 0:02:32]} 20. Bh1 {[%clk 0:02:54]}  h6 {[%clk 0:02:26]} 21. b4 {[%clk 0:02:53]}  axb4 {[%clk 0:02:24]} 22. axb4 {[%clk 0:02:54]}  Rxa1 {[%clk 0:02:25]} 23. Bxa1 {[%clk 0:02:53]}  Qa4 {[%clk 0:02:17]} 24. Nc5 {[%clk 0:02:51]}  Bxc5 {[%clk 0:02:10]} 25. bxc5 {[%clk 0:02:52]}  Ra8 {[%clk 0:02:04]} 26. Bb2 {[%clk 0:02:50]}  Qb3 {[%clk 0:02:04]} 27. Bc1 {[%clk 0:01:58]}  Ra2 {[%clk 0:01:55]} 28. Qd1 {[%clk 0:01:58]}  Qb4 {[%clk 0:01:14]} 29. c6 {[%clk 0:01:58]}  bxc6 {[%clk 0:01:09]} 30. Bxc6 {[%clk 0:01:59]}  Bg4 {[%clk 0:01:09]} 31. f3 {[%clk 0:01:56]}  Bh3 {[%clk 0:01:06]} 32. Be4 {[%clk 0:01:54]}  Qb1 {[%clk 0:00:41]} 33. f4 {[%clk 0:00:59]}  Rc2 {[%clk 0:00:34]} 34. fxe5 {[%clk 0:00:49]}  Qa2 {[%clk 0:00:29]} 35. e6 {[%clk 0:00:25]}  Rg2+ {[%clk 0:00:22]} 36. Kh1 {[%clk 0:00:24]}  Rxh2+ {[%clk 0:00:23]} 37. Kg1 {[%clk 0:00:24]}  Qf2# {[%clk 0:00:24]} 0-1


[Site "https://www.chess.com"]

[Event "Titled Tuesday Blitz February 01 A 2022"]
[White "Kozlov, Gennady"]
[Black "Grandelius, Nils"]
[WhiteFideId "4191668"]
[BlackFideId "1710400"]
[WhiteElo "2593"]
[BlackElo "2879"]
[Result "1/2-1/2"]
[Round "04"]
[TimeControl "180+1"]
[Date "2022.02.01"]
[WhiteClock "0:00:16"]
[BlackClock "0:00:06"]

1. d4 {[%clk 0:03:00]}  d5 {[%clk 0:03:00]} 2. c4 {[%clk 0:02:55]}  e6 {[%clk 0:03:00]} 3. Nc3 {[%clk 0:02:54]}  a6 {[%clk 0:03:01]} 4. e3 {[%clk 0:02:54]}  Nf6 {[%clk 0:03:01]} 5. Nf3 {[%clk 0:02:54]}  dxc4 {[%clk 0:03:00]} 6. Bxc4 {[%clk 0:02:53]}  b6 {[%clk 0:03:01]} 7. O-O {[%clk 0:02:52]}  Bb7 {[%clk 0:03:01]} 8. a4 {[%clk 0:02:52]}  Bb4 {[%clk 0:02:59]} 9. Bd2 {[%clk 0:02:48]}  O-O {[%clk 0:02:58]} 10. Qb3 {[%clk 0:02:47]}  Bd6 {[%clk 0:02:47]} 11. Be2 {[%clk 0:02:45]}  Nbd7 {[%clk 0:02:43]} 12. Ne1 {[%clk 0:02:41]}  c5 {[%clk 0:02:39]} 13. Bf3 {[%clk 0:02:41]}  cxd4 {[%clk 0:02:30]} 14. exd4 {[%clk 0:02:42]}  Qc7 {[%clk 0:02:25]} 15. Bxb7 {[%clk 0:02:38]}  Qxb7 {[%clk 0:02:25]} 16. Nf3 {[%clk 0:02:37]}  Rfd8 {[%clk 0:02:21]} 17. Bg5 {[%clk 0:02:36]}  h6 {[%clk 0:02:21]} 18. Bh4 {[%clk 0:02:36]}  Rdc8 {[%clk 0:02:17]} 19. Rfe1 {[%clk 0:02:36]}  Rab8 {[%clk 0:02:14]} 20. Ne5 {[%clk 0:02:29]}  b5 {[%clk 0:02:04]} 21. axb5 {[%clk 0:02:27]}  axb5 {[%clk 0:02:05]} 22. Nxf7 {[%clk 0:02:22]}  Bxh2+ {[%clk 0:02:03]} 23. Kxh2 {[%clk 0:02:20]}  Kxf7 {[%clk 0:02:04]} 24. Qxe6+ {[%clk 0:02:19]}  Kg6 {[%clk 0:02:00]} 25. Re3 {[%clk 0:01:58]}  Rf8 {[%clk 0:01:40]} 26. Rg3+ {[%clk 0:01:50]}  Kh7 {[%clk 0:01:40]} 27. Qf5+ {[%clk 0:01:40]}  Kh8 {[%clk 0:01:37]} 28. Qg6 {[%clk 0:01:41]}  Rg8 {[%clk 0:01:27]} 29. Re1 {[%clk 0:01:39]}  Nf8 {[%clk 0:01:22]} 30. Qf5 {[%clk 0:01:37]}  N8h7 {[%clk 0:01:21]} 31. Re5 {[%clk 0:01:24]}  b4 {[%clk 0:01:19]} 32. Ne2 {[%clk 0:01:24]}  g5 {[%clk 0:01:12]} 33. Nf4 {[%clk 0:01:21]}  Qf7 {[%clk 0:01:00]} 34. Re6 {[%clk 0:01:03]}  Rbf8 {[%clk 0:00:52]} 35. Bxg5 {[%clk 0:00:41]}  Rxg5 {[%clk 0:00:39]} 36. Rxg5 {[%clk 0:00:39]}  hxg5 {[%clk 0:00:40]} 37. Ng6+ {[%clk 0:00:31]}  Kg7 {[%clk 0:00:37]} 38. Re7 {[%clk 0:00:31]}  Nh5 {[%clk 0:00:22]} 39. Rxf7+ {[%clk 0:00:29]}  Rxf7 {[%clk 0:00:23]} 40. Qd3 {[%clk 0:00:26]}  Rxf2 {[%clk 0:00:23]} 41. d5 {[%clk 0:00:24]}  N7f6 {[%clk 0:00:18]} 42. d6 {[%clk 0:00:24]}  g4 {[%clk 0:00:16]} 43. d7 {[%clk 0:00:20]}  g3+ {[%clk 0:00:15]} 44. Kg1 {[%clk 0:00:20]}  Nxd7 {[%clk 0:00:13]} 45. Qxd7+ {[%clk 0:00:19]}  Kxg6 {[%clk 0:00:13]} 46. Qd6+ {[%clk 0:00:19]}  Kg5 {[%clk 0:00:13]} 47. Qxb4 {[%clk 0:00:19]}  Nf4 {[%clk 0:00:12]} 48. Qe7+ {[%clk 0:00:19]}  Kf5 {[%clk 0:00:12]} 49. Qf7+ {[%clk 0:00:19]}  Ke4 {[%clk 0:00:13]} 50. Qb7+ {[%clk 0:00:18]}  Ke3 {[%clk 0:00:09]} 51. Qb3+ {[%clk 0:00:17]}  Nd3 {[%clk 0:00:09]} 52. Qe6+ {[%clk 0:00:18]}  Kd2 {[%clk 0:00:08]} 53. Qg6 {[%clk 0:00:16]}  Rxg2+ {[%clk 0:00:03]} 54. Kxg2 {[%clk 0:00:14]}  Nf4+ {[%clk 0:00:04]} 55. Kxg3 {[%clk 0:00:14]}  Nxg6 {[%clk 0:00:05]} 56. b4 {[%clk 0:00:14]}  Ne7 {[%clk 0:00:05]} 57. b5 {[%clk 0:00:14]}  Kc3 {[%clk 0:00:06]} 58. b6 {[%clk 0:00:14]}  Nc6 {[%clk 0:00:06]} 59. b7 {[%clk 0:00:15]}  Kc4 {[%clk 0:00:06]} 60. b8=Q {[%clk 0:00:16]}  Nxb8 {[%clk 0:00:06]} 1/2-1/2


[Site "https://www.chess.com"]

[Event "Titled Tuesday Blitz February 01 A 2022"]
[White "Kravtsiv, Martyn"]
[Black "Williams, Simon K"]
[WhiteFideId "14113147"]
[BlackFideId "404454"]
[WhiteElo "2694"]
[BlackElo "2468"]
[Result "1-0"]
[Round "04"]
[TimeControl "180+1"]
[Date "2022.02.01"]
[WhiteClock "0:00:03"]
[BlackClock "0:00:06"]

1. e4 {[%clk 0:03:00]}  c5 {[%clk 0:02:58]} 2. Nf3 {[%clk 0:03:00]}  d6 {[%clk 0:02:58]} 3. Bb5+ {[%clk 0:03:00]}  Nc6 {[%clk 0:02:57]} 4. O-O {[%clk 0:02:57]}  Bd7 {[%clk 0:02:57]} 5. Re1 {[%clk 0:02:52]}  a6 {[%clk 0:02:56]} 6. Bf1 {[%clk 0:02:53]}  e5 {[%clk 0:02:53]} 7. c3 {[%clk 0:02:51]}  g5 {[%clk 0:02:52]} 8. d4 {[%clk 0:02:28]}  g4 {[%clk 0:02:47]} 9. Nfd2 {[%clk 0:02:20]}  cxd4 {[%clk 0:02:46]} 10. Nb3 {[%clk 0:02:21]}  Qf6 {[%clk 0:02:16]} 11. N1d2 {[%clk 0:02:13]}  h5 {[%clk 0:02:05]} 12. Nc4 {[%clk 0:02:11]}  h4 {[%clk 0:02:06]} 13. Nb6 {[%clk 0:02:08]}  g3 {[%clk 0:02:05]} 14. fxg3 {[%clk 0:02:04]}  hxg3 {[%clk 0:02:04]} 15. hxg3 {[%clk 0:02:04]}  Nh6 {[%clk 0:01:40]} 16. Nxd7 {[%clk 0:01:50]}  Kxd7 {[%clk 0:01:36]} 17. Qf3 {[%clk 0:01:50]}  Be7 {[%clk 0:01:20]} 18. cxd4 {[%clk 0:01:32]}  exd4 {[%clk 0:00:58]} 19. Qxf6 {[%clk 0:00:46]}  Bxf6 {[%clk 0:00:58]} 20. Bf4 {[%clk 0:00:47]}  Ng4 {[%clk 0:00:38]} 21. Be2 {[%clk 0:00:45]}  Nge5 {[%clk 0:00:39]} 22. Rad1 {[%clk 0:00:44]}  Rh7 {[%clk 0:00:29]} 23. Kf2 {[%clk 0:00:41]}  Rg8 {[%clk 0:00:23]} 24. Nxd4 {[%clk 0:00:38]}  Nxd4 {[%clk 0:00:20]} 25. Rxd4 {[%clk 0:00:38]}  Ke7 {[%clk 0:00:17]} 26. Rd2 {[%clk 0:00:30]}  Rc8 {[%clk 0:00:15]} 27. Red1 {[%clk 0:00:29]}  Rc6 {[%clk 0:00:15]} 28. a4 {[%clk 0:00:26]}  Rh8 {[%clk 0:00:14]} 29. b4 {[%clk 0:00:26]}  Rd8 {[%clk 0:00:14]} 30. g4 {[%clk 0:00:24]}  Rc3 {[%clk 0:00:12]} 31. g5 {[%clk 0:00:23]}  Bg7 {[%clk 0:00:13]} 32. b5 {[%clk 0:00:20]}  axb5 {[%clk 0:00:13]} 33. axb5 {[%clk 0:00:20]}  Rd7 {[%clk 0:00:12]} 34. g3 {[%clk 0:00:19]}  Rb3 {[%clk 0:00:12]} 35. Kg2 {[%clk 0:00:19]}  Rb4 {[%clk 0:00:12]} 36. Rd4 {[%clk 0:00:14]}  Rxd4 {[%clk 0:00:12]} 37. Rxd4 {[%clk 0:00:15]}  Rc7 {[%clk 0:00:12]} 38. Rd2 {[%clk 0:00:13]}  Rc5 {[%clk 0:00:12]} 39. Ra2 {[%clk 0:00:11]}  Rc7 {[%clk 0:00:12]} 40. Bh5 {[%clk 0:00:09]}  Ng6 {[%clk 0:00:11]} 41. Rd2 {[%clk 0:00:07]}  Be5 {[%clk 0:00:10]} 42. Bxg6 {[%clk 0:00:07]}  fxg6 {[%clk 0:00:11]} 43. Bxe5 {[%clk 0:00:07]}  dxe5 {[%clk 0:00:11]} 44. Rd5 {[%clk 0:00:07]}  Ke6 {[%clk 0:00:12]} 45. Kf3 {[%clk 0:00:05]}  Rc3+ {[%clk 0:00:12]} 46. Kf2 {[%clk 0:00:04]}  Rb3 {[%clk 0:00:12]} 47. Rc5 {[%clk 0:00:04]}  Kd6 {[%clk 0:00:11]} 48. Rd5+ {[%clk 0:00:03]}  Ke6 {[%clk 0:00:11]} 49. Kg2 {[%clk 0:00:04]}  Rb4 {[%clk 0:00:11]} 50. Kf3 {[%clk 0:00:04]}  Rb3+ {[%clk 0:00:11]} 51. Kf2 {[%clk 0:00:04]}  Rb4 {[%clk 0:00:12]} 52. Ke3 {[%clk 0:00:04]}  Rb3+ {[%clk 0:00:12]} 53. Kf2 {[%clk 0:00:03]}  Rb4 {[%clk 0:00:12]} 54. Rd8 {[%clk 0:00:04]}  Rxe4 {[%clk 0:00:12]} 55. Rf8 {[%clk 0:00:04]}  Rb4 {[%clk 0:00:11]} 56. Rf6+ {[%clk 0:00:04]}  Kd5 {[%clk 0:00:12]} 57. b6 {[%clk 0:00:04]}  Ke4 {[%clk 0:00:11]} 58. Kg2 {[%clk 0:00:02]}  Rb2+ {[%clk 0:00:11]} 59. Kh3 {[%clk 0:00:02]}  Kd3 {[%clk 0:00:11]} 60. Kg4 {[%clk 0:00:02]}  e4 {[%clk 0:00:11]} 61. Rd6+ {[%clk 0:00:03]}  Ke2 {[%clk 0:00:12]} 62. Rxg6 {[%clk 0:00:03]}  e3 {[%clk 0:00:12]} 63. Re6 {[%clk 0:00:03]}  Rb4+ {[%clk 0:00:12]} 64. Kh5 {[%clk 0:00:03]}  Kf2 {[%clk 0:00:12]} 65. g6 {[%clk 0:00:04]}  Rb2 {[%clk 0:00:11]} 66. g7 {[%clk 0:00:04]}  Rb5+ {[%clk 0:00:10]} 67. Kg6 {[%clk 0:00:04]}  e2 {[%clk 0:00:07]} 68. g8=Q {[%clk 0:00:03]}  Rxb6 {[%clk 0:00:06]} 69. Qf7+ {[%clk 0:00:04]}  Kxg3 {[%clk 0:00:06]} 70. Rxb6 {[%clk 0:00:03]} 1-0


[Site "https://www.chess.com"]

[Event "Titled Tuesday Blitz February 01 A 2022"]
[White "Martinez Alcantara, Jose Eduardo"]
[Black "Blohberger, Felix"]
[WhiteFideId "3805662"]
[BlackFideId "1632051"]
[WhiteElo "2986"]
[BlackElo "2720"]
[Result "1-0"]
[Round "04"]
[TimeControl "180+1"]
[Date "2022.02.01"]
[WhiteClock "0:00:16"]
[BlackClock "0:00:02"]

1. e4 {[%clk 0:03:00]}  c6 {[%clk 0:02:57]} 2. d4 {[%clk 0:02:57]}  d5 {[%clk 0:02:56]} 3. e5 {[%clk 0:02:57]}  Bf5 {[%clk 0:02:56]} 4. h4 {[%clk 0:02:56]}  h5 {[%clk 0:02:56]} 5. Bd3 {[%clk 0:02:56]}  Bxd3 {[%clk 0:02:54]} 6. Qxd3 {[%clk 0:02:57]}  Qa5+ {[%clk 0:02:54]} 7. b4 {[%clk 0:02:57]}  Qa6 {[%clk 0:02:54]} 8. e6 {[%clk 0:02:56]}  Qxd3 {[%clk 0:02:53]} 9. cxd3 {[%clk 0:02:55]}  fxe6 {[%clk 0:02:51]} 10. Nf3 {[%clk 0:02:42]}  Nd7 {[%clk 0:02:49]} 11. Nc3 {[%clk 0:02:38]}  Nh6 {[%clk 0:02:44]} 12. Ne2 {[%clk 0:02:35]}  Nf5 {[%clk 0:02:42]} 13. Rb1 {[%clk 0:02:33]}  Rc8 {[%clk 0:02:00]} 14. O-O {[%clk 0:02:28]}  Rg8 {[%clk 0:01:52]} 15. Nf4 {[%clk 0:02:23]}  Nxh4 {[%clk 0:01:52]} 16. Ng5 {[%clk 0:01:41]}  e5 {[%clk 0:01:47]} 17. Nfe6 {[%clk 0:01:42]}  Nf5 {[%clk 0:01:42]} 18. dxe5 {[%clk 0:01:14]}  Nxe5 {[%clk 0:01:38]} 19. Bb2 {[%clk 0:01:10]}  Nf7 {[%clk 0:01:24]} 20. Nh7 {[%clk 0:01:07]}  Kd7 {[%clk 0:01:15]} 21. Rfe1 {[%clk 0:01:02]}  g6 {[%clk 0:01:12]} 22. Nc5+ {[%clk 0:00:53]}  Kc7 {[%clk 0:01:09]} 23. Nxf8 {[%clk 0:00:49]}  Rgxf8 {[%clk 0:01:05]} 24. Ne6+ {[%clk 0:00:49]}  Kd7 {[%clk 0:01:05]} 25. Nc5+ {[%clk 0:00:46]}  Kc7 {[%clk 0:01:05]} 26. Ne6+ {[%clk 0:00:44]}  Kd7 {[%clk 0:01:02]} 27. Nxf8+ {[%clk 0:00:45]}  Rxf8 {[%clk 0:01:02]} 28. a4 {[%clk 0:00:46]}  Rc8 {[%clk 0:00:59]} 29. Re2 {[%clk 0:00:43]}  N7d6 {[%clk 0:00:58]} 30. Rbe1 {[%clk 0:00:42]}  Rg8 {[%clk 0:00:49]} 31. Be5 {[%clk 0:00:40]}  Nf7 {[%clk 0:00:44]} 32. Bb2 {[%clk 0:00:40]}  N7d6 {[%clk 0:00:35]} 33. Re5 {[%clk 0:00:35]}  a6 {[%clk 0:00:32]} 34. Bc1 {[%clk 0:00:31]}  Nf7 {[%clk 0:00:32]} 35. Re6 {[%clk 0:00:30]}  Nd8 {[%clk 0:00:32]} 36. R6e2 {[%clk 0:00:30]}  Nf7 {[%clk 0:00:27]} 37. f3 {[%clk 0:00:31]}  Re8 {[%clk 0:00:25]} 38. g4 {[%clk 0:00:23]}  Nd4 {[%clk 0:00:23]} 39. Rf2 {[%clk 0:00:23]}  e5 {[%clk 0:00:19]} 40. Be3 {[%clk 0:00:24]}  Ne6 {[%clk 0:00:18]} 41. gxh5 {[%clk 0:00:21]}  gxh5 {[%clk 0:00:19]} 42. Rg2 {[%clk 0:00:22]}  Rh8 {[%clk 0:00:15]} 43. Kh2 {[%clk 0:00:22]}  h4 {[%clk 0:00:16]} 44. Reg1 {[%clk 0:00:20]}  Rh5 {[%clk 0:00:16]} 45. Rg4 {[%clk 0:00:18]}  Rf5 {[%clk 0:00:16]} 46. Rf1 {[%clk 0:00:18]}  Rh5 {[%clk 0:00:16]} 47. b5 {[%clk 0:00:15]}  axb5 {[%clk 0:00:16]} 48. axb5 {[%clk 0:00:16]}  c5 {[%clk 0:00:16]} 49. Ra1 {[%clk 0:00:16]}  Rf5 {[%clk 0:00:14]} 50. Kg2 {[%clk 0:00:17]}  Nfg5 {[%clk 0:00:13]} 51. Bxg5 {[%clk 0:00:16]}  Nxg5 {[%clk 0:00:13]} 52. Rxh4 {[%clk 0:00:17]}  Rxf3 {[%clk 0:00:09]} 53. Rh5 {[%clk 0:00:17]}  Rf5 {[%clk 0:00:08]} 54. Ra8 {[%clk 0:00:17]}  Kc7 {[%clk 0:00:07]} 55. Rg8 {[%clk 0:00:17]}  Kb6 {[%clk 0:00:02]} 56. Rgxg5 {[%clk 0:00:16]}  Rxg5+ {[%clk 0:00:02]} 57. Rxg5 {[%clk 0:00:17]}  d4 {[%clk 0:00:01]} 58. Rxe5 {[%clk 0:00:17]}  Kxb5 {[%clk 0:00:02]} 59. Kf3 {[%clk 0:00:17]}  Kb4 {[%clk 0:00:02]} 60. Ke4 {[%clk 0:00:18]}  b5 {[%clk 0:00:02]} 61. Rd5 {[%clk 0:00:17]}  c4 {[%clk 0:00:01]} 62. Kxd4 {[%clk 0:00:17]}  c3 {[%clk 0:00:02]} 63. Rc5 {[%clk 0:00:16]} 1-0


[Site "https://www.chess.com"]